fUST/lending_fUST_20250727
["ID","MTS","AMOUNT","RATE_DAILY","PERIOD"]
[375176224,1753577457317,-460.0,0.00024561,2]
[375176225,1753577457327,-487.91,0.00024564,2]
[375176226,1753577457337,-680.27,0.00024564,2]
[375176227,1753577457347,-166.630852,0.00024648,2]
[375176228,1753577457357,-500.0,0.00024658,2]
[375176229,1753577457367,-2903.69572395,0.00024659,11]
[375176230,1753577457377,-888.86,0.00024665,2]
[375176231,1753577457386,-1108.21,0.00024665,2]
[375176232,1753577457396,-1880.24,0.00024667,2]
[375176233,1753577457405,-460.0,0.00024667,2]
[375176234,1753577457415,-671.82,0.00024667,2]
[375176235,1753577457425,-500.0,0.00024681,2]
[375176236,1753577457434,-874.49,0.000247,7]
[375176237,1753577457444,-2265.62,0.000247,7]
[375176238,1753577457453,-429.9056391,0.00024712,2]
[375176239,1753577457463,-429.9056391,0.00024712,2]
[375176240,1753577457473,-429.2900619,0.00024712,2]
[375176241,1753577457483,-166.630852,0.00024734,3]
[375176242,1753577457492,-624.6,0.00024765,2]
[375176243,1753577457502,-460.0,0.00024765,2]
[375176244,1753577457511,-910.08,0.00024765,2]
[375176245,1753577457521,-747.92,0.00024765,2]
[375176246,1753577457530,-166.630852,0.000248,5]
[375176247,1753577457540,-8554.09040226,0.000248,2]
[375176248,1753577457549,-1189.54,0.00024827,2]
[375176249,1753577457559,-1127.01,0.00024827,2]
[375176250,1753577457568,-897.91,0.00024827,2]
[375176251,1753577457577,-166.630852,0.00024833,10]
[375176252,1753577457586,-3134.01,0.00024835,2]
[375176253,1753577457596,-460.0,0.00024835,2]
[375176254,1753577457605,-487.91,0.00024838,2]
[375176255,1753577457615,-680.27,0.00024838,2]
[375176256,1753577457625,-2903.69572395,0.00024866,12]
[375176257,1753577457634,-150.18147814,0.00024873,2]
[375176258,1753577457644,-151.0,0.000249,7]
[375176259,1753577457653,-21072.81,0.000249,2]
[375176260,1753577457664,-152.129948,0.000249,7]
[375176261,1753577457673,-151.0,0.000249,7]
[375176262,1753577457684,-151.0,0.000249,7]
[375176263,1753577457694,-481327.4746908,0.000249,2]
[375176264,1753577457802,-16224.41902891,0.000249,2]
[375176265,1753577458013,3150.90067717,0.0001901,2]
[375176266,1753577458188,-457.59336901,0.00019344,2]
[375176267,1753577458198,-460.0,0.00019345,2]
[375176268,1753577458209,-460.0,0.00019347,2]
[375176269,1753577458219,-460.0,0.00019347,2]
[375176270,1753577458229,-460.0,0.00019347,2]
[375176271,1753577458238,-500.0,0.00019355,2]
[375176272,1753577458247,-550.0,0.00019355,2]
[375176273,1753577458258,-460.0,0.00019459,2]
[375176274,1753577458268,-460.0,0.00019619,2]
[375176275,1753577458278,-460.0,0.00019621,2]
[375176276,1753577458289,-425.10830222,0.00019621,2]
[375176277,1753577458299,-460.0,0.00019833,2]
[375176278,1753577458308,-460.0,0.00019906,2]
[375176279,1753577458318,-460.0,0.00020107,2]
[375176280,1753577458327,-460.0,0.0002018,2]
[375176281,1753577458337,-460.0,0.00020454,2]
[375176282,1753577458346,-460.0,0.00020728,2]
[375176283,1753577458356,-460.0,0.00021002,2]
[375176284,1753577458365,-460.0,0.00021101,2]
[375176285,1753577458375,-460.0,0.00021375,2]
[375176286,1753577458384,-460.0,0.00021649,2]
[375176287,1753577458394,-460.0,0.00021923,2]
[375176288,1753577458403,-362.5,0.00022197,2]
[375176289,1753577458412,-92417.77232129,0.000249,2]
[375176290,1753577458422,-1281.96289323,0.000249,2]
[375176291,1753577458431,-500.0,0.00024932,2]
[375176292,1753577458441,-888.86,0.00024939,2]
[375176293,1753577458450,-1108.21,0.00024939,2]
[375176294,1753577458460,-1880.24,0.00024941,2]
[375176295,1753577458470,-460.0,0.00024941,2]
[375176296,1753577458480,-671.82,0.00024941,2]
[375176297,1753577458489,-3107.40840545,0.0002495,2]
[375176298,1753577458499,-500.0,0.00024978,2]
[375176299,1753577458510,-1380.89738303,0.00024999,7]
[375176300,1753577458519,-2646.70481958,0.00025,10]
[375176301,1753577458529,-162.2577892,0.00025,5]
[375176302,1753577458537,-2037.91335422,0.00025,14]
[375176303,1753577458545,-2689.41546041,0.00025,7]
[375176304,1753577458553,-25188.41471773,0.00025,30]
[375176305,1753577458563,-1063.93630991,0.00025,2]
[375176306,1753577458572,-16003.75512034,0.00025,2]
[375176307,1753577458581,-93289.19330976,0.00025,2]
[375176308,1753577458592,-2619.74672291,0.00025,2]
[375176309,1753577458602,-207.74024989,0.00025,2]
[375176310,1753577458611,-358.61954978,0.00025,2]
[375176311,1753577458621,-10364.0,0.00025,2]
[375176312,1753577458630,-500.0,0.00025,2]
[375176313,1753577458640,-4638.87128057,0.00025,2]
[375176314,1753577459229,2224.46507394,0.0001901,2]
[375176315,1753577459253,2775.53492606,0.0001901,2]
[375176316,1753577468994,5000.0,0.0001901,2]
[375176317,1753577484801,5000.0,0.0001901,2]
[375176318,1753577500784,5000.0,0.0001901,2]
[375176319,1753577517358,5000.0,0.0001901,2]
[375176320,1753577532774,5000.0,0.0001901,2]
[375176321,1753577548075,5000.0,0.0001901,2]
[375176322,1753577563431,4389.93425127,0.0001901,2]
[375176323,1753577610031,405.89814622,0.0001867,2]
[375176327,1753577734146,207.8342917,0.00018271,2]
[375176334,1753577893377,161.730251,0.00013699,2]
[375176337,1753577911268,243.53888773,0.00018668,2]
[375176355,1753578387675,1815.52924602,0.00018235,2]
[375176356,1753578387701,2057.03597878,0.00018235,2]
[375176357,1753578435107,-1187.20994306,0.00019172,2]
[375176358,1753578448710,8505.7385924,0.00018234,2]
[375176359,1753578470711,396.901927,0.00018234,2]
[375176360,1753578472767,308.7507566,0.00018234,2]
[375176361,1753578528778,24900.0,0.00018236,2]
[375176362,1753578542615,175.76120748,0.0001901,2]
[375176406,1753578632609,-300.0,0.00019171,2]
[375176660,1753578638573,-12.79005694,0.00019172,2]
[375176661,1753578638583,-300.0,0.00019172,2]
[375176662,1753578638592,-300.0,0.00019172,2]
[375176663,1753578638602,-300.0,0.00019172,2]
[375176664,1753578638611,-297.0,0.00019172,2]
[375176665,1753578638625,-1200.0,0.00019172,2]
[375176666,1753578638635,-300.0,0.00019172,2]
[375176667,1753578638644,-725.35333969,0.00019173,2]
[375176668,1753578638654,-440.16891402,0.00019232,2]
[375176669,1753578638663,-500.0,0.00019232,2]
[375176670,1753578638674,-222.29317711,0.00019232,2]
[375176671,1753578638683,-495.78913421,0.00019232,2]
[375176672,1753578638692,-211.13999792,0.00019232,2]
[375176674,1753578638703,-500.0,0.00019232,2]
[375176675,1753578638714,-500.0,0.00019232,2]
[375176676,1753578638724,-502.73276651,0.00019232,2]
[375176677,1753578638733,-500.0,0.00019232,2]
[375176678,1753578638744,-500.0,0.00019232,2]
[375176679,1753578638754,-500.0,0.00019232,2]
[375176680,1753578638763,-500.0,0.00019232,2]
[375176681,1753578638773,-500.0,0.00019232,2]
[375176682,1753578638782,-328.01211197,0.00019232,2]
[375176683,1753578638792,-500.0,0.00019232,2]
[375176684,1753578638801,-500.0,0.00019232,2]
[375176685,1753578638811,-500.0,0.00019232,2]
[375176686,1753578638820,-500.0,0.00019232,2]
[375176687,1753578638829,-500.0,0.00019232,2]
[375176688,1753578638839,-500.0,0.00019232,2]
[375176689,1753578638848,-500.0,0.00019232,2]
[375176690,1753578638857,-500.0,0.00019232,2]
[375176691,1753578638867,-500.0,0.00019232,2]
[375176692,1753578638876,-500.0,0.00019232,2]
[375176693,1753578638885,-500.0,0.00019232,2]
[375176694,1753578638895,-500.0,0.00019232,2]
[375176695,1753578638905,-500.0,0.00019232,2]
[375176696,1753578638915,-500.0,0.00019232,2]
[375176697,1753578638925,-500.0,0.00019232,2]
[375176698,1753578638935,-500.0,0.00019232,2]
[375176699,1753578638944,-407.42638975,0.00019232,2]
[375176700,1753578638954,-500.0,0.00019232,2]
[375176701,1753578638964,-500.0,0.00019232,2]
[375176702,1753578638973,-500.0,0.00019232,2]
[375176703,1753578638982,-500.0,0.00019232,2]
[375176704,1753578638992,-500.0,0.00019232,2]
[375176705,1753578639001,-500.0,0.00019232,2]
[375176706,1753578639011,-500.0,0.00019232,2]
[375176707,1753578639020,-460.0,0.00019232,2]
[375176708,1753578639030,-460.0,0.00019232,2]
[375176709,1753578639039,-460.0,0.00019232,2]
[375176710,1753578639048,-339.68228051,0.00019232,2]
[375176711,1753578639058,-460.0,0.00019232,2]
[375176712,1753578639068,-460.0,0.00019232,2]
[375176713,1753578639080,-460.0,0.00019232,2]
[375176714,1753578639090,-50000.0,0.00019233,2]
[375176715,1753578639100,-353.20146912,0.00019234,2]
[375176716,1753578639110,-460.0,0.00019234,2]
[375176717,1753578639120,-460.0,0.00019234,2]
[375176718,1753578639130,-460.0,0.00019234,2]
[375176719,1753578639140,-1000.0,0.00019234,2]
[375176720,1753578639150,-460.0,0.00019234,2]
[375176721,1753578639159,-460.0,0.00019234,2]
[375176722,1753578639169,-460.0,0.00019234,2]
[375176723,1753578639179,-460.0,0.00019234,2]
[375176724,1753578639188,-334.95405822,0.00019234,2]
[375176725,1753578639197,-460.0,0.00019234,2]
[375176726,1753578639303,-460.0,0.00019234,2]
[375176727,1753578639313,-460.0,0.00019234,2]
[375176728,1753578639323,-500.0,0.00019234,2]
[375176729,1753578639333,-1059.09,0.00019234,2]
[375176730,1753578639343,-460.0,0.00019234,2]
[375176731,1753578639353,-460.0,0.00019234,2]
[375176732,1753578639363,-460.0,0.00019234,2]
[375176733,1753578639373,-460.0,0.00019234,2]
[375176734,1753578639382,-460.0,0.00019234,2]
[375176735,1753578639391,-460.0,0.00019234,2]
[375176736,1753578639401,-500.0,0.00019235,2]
[375176737,1753578639410,-500.0,0.00019235,2]
[375176738,1753578639420,-500.0,0.00019235,2]
[375176739,1753578639429,-286.68235801,0.00019235,2]
[375176740,1753578639439,-500.0,0.00019235,2]
[375176741,1753578639449,-439.57483037,0.00019235,2]
[375176742,1753578639458,-500.0,0.00019235,2]
[375176743,1753578639468,-500.0,0.00019235,2]
[375176744,1753578639478,-500.0,0.00019235,2]
[375176745,1753578639487,-500.0,0.00019235,2]
[375176746,1753578639500,-500.0,0.00019235,2]
[375176747,1753578639509,-500.0,0.00019235,2]
[375176748,1753578639520,-500.0,0.00019235,2]
[375176749,1753578639529,-500.0,0.00019235,2]
[375176750,1753578639539,-154.57,0.00019235,3]
[375176751,1753578639548,-463.74,0.00019235,3]
[375176752,1753578639558,-500.0,0.00019236,2]
[375176753,1753578639567,-500.0,0.00019236,2]
[375176754,1753578639577,-500.0,0.00019236,2]
[375176755,1753578639587,-500.0,0.00019236,2]
[375176756,1753578639596,-500.0,0.00019236,2]
[375176757,1753578639606,-500.0,0.00019236,2]
[375176758,1753578639616,-500.0,0.00019236,2]
[375176759,1753578639631,-500.0,0.00019236,2]
[375176760,1753578639641,-500.0,0.00019236,2]
[375176761,1753578639650,-500.0,0.00019236,2]
[375176762,1753578639660,-500.0,0.00019236,2]
[375176763,1753578639669,-252.75,0.00019237,3]
[375176764,1753578639679,-758.29,0.00019237,3]
[375176765,1753578639688,-309.15,0.00019237,3]
[375176766,1753578639697,-460.0,0.00019242,2]
[375176767,1753578639707,-460.0,0.00019242,2]
[375176768,1753578639717,-460.0,0.00019242,2]
[375176769,1753578639726,-460.0,0.00019242,2]
[375176770,1753578639736,-460.0,0.00019242,2]
[375176771,1753578639745,-460.0,0.00019242,2]
[375176772,1753578639755,-460.0,0.00019242,2]
[375176773,1753578639764,-460.0,0.00019242,2]
[375176774,1753578639773,-460.0,0.00019242,2]
[375176775,1753578639783,-460.0,0.00019242,2]
[375176776,1753578639792,-460.0,0.00019242,2]
[375176777,1753578639801,-460.0,0.00019242,2]
[375176778,1753578639811,-414.46696423,0.00019242,2]
[375176779,1753578639820,-460.0,0.00019242,2]
[375176780,1753578639830,-460.0,0.00019242,2]
[375176781,1753578639840,-460.0,0.00019242,2]
[375176782,1753578639851,-493.9912222,0.00019242,2]
[375176783,1753578639861,-1353.43,0.00019242,2]
[375176784,1753578639871,-460.0,0.00019242,2]
[375176785,1753578639883,-460.0,0.00019242,2]
[375176786,1753578639893,-460.0,0.00019242,2]
[375176787,1753578639903,-1539.81,0.00019242,2]
[375176788,1753578639913,-460.0,0.00019242,2]
[375176789,1753578639925,-460.0,0.00019242,2]
[375176790,1753578639936,-460.0,0.00019242,2]
[375176791,1753578639945,-1181.02,0.00019242,2]
[375176792,1753578639954,-460.0,0.00019242,2]
[375176793,1753578639963,-460.0,0.00019242,2]
[375176794,1753578639973,-460.0,0.00019242,2]
[375176795,1753578639982,-460.0,0.00019242,2]
[375176796,1753578639993,-490.0,0.00019242,2]
[375176797,1753578640003,-460.0,0.00019242,2]
[375176798,1753578640013,-460.0,0.00019242,2]
[375176799,1753578640023,-460.0,0.00019243,2]
[375176800,1753578640033,-460.0,0.00019243,2]
[375176801,1753578640042,-460.0,0.00019243,2]
[375176802,1753578640052,-460.0,0.00019243,2]
[375176803,1753578640062,-460.0,0.00019243,2]
[375176804,1753578640076,-592.53028,0.00019243,2]
[375176805,1753578640088,-460.0,0.00019243,2]
[375176806,1753578640098,-460.0,0.00019243,2]
[375176807,1753578640109,-460.0,0.00019243,2]
[375176808,1753578640122,-460.0,0.00019243,2]
[375176809,1753578640141,-460.0,0.00019243,2]
[375176810,1753578640164,-460.0,0.00019243,2]
[375176811,1753578640186,-460.0,0.00019243,2]
[375176812,1753578640198,-460.0,0.00019243,2]
[375176813,1753578640207,-460.0,0.00019243,2]
[375176814,1753578640217,-460.0,0.00019243,2]
[375176815,1753578640227,-460.0,0.00019243,2]
[375176816,1753578640237,-460.0,0.00019243,2]
[375176817,1753578640249,-460.0,0.00019243,2]
[375176819,1753578640258,-460.0,0.00019243,2]
[375176821,1753578640268,-460.0,0.00019243,2]
[375176823,1753578640277,-478.79,0.00019243,2]
[375176824,1753578640286,-460.0,0.00019243,2]
[375176825,1753578640296,-461.91117377,0.00019243,2]
[375176826,1753578640305,-172.51469802,0.00019243,2]
[375176827,1753578640315,-460.0,0.00019243,2]
[375176828,1753578640325,-460.0,0.00019243,2]
[375176829,1753578640335,-460.0,0.00019243,2]
[375176830,1753578640344,-460.0,0.00019243,2]
[375176831,1753578640353,-460.0,0.00019243,2]
[375176832,1753578640363,-460.0,0.00019243,2]
[375176833,1753578640373,-460.0,0.00019243,2]
[375176834,1753578640383,-460.0,0.00019243,2]
[375176835,1753578640392,-460.0,0.00019243,2]
[375176836,1753578640402,-460.0,0.00019243,2]
[375176837,1753578640412,-460.0,0.00019243,2]
[375176838,1753578640421,-460.0,0.00019243,2]
[375176839,1753578640431,-460.0,0.00019243,2]
[375176840,1753578640441,-506.64644076,0.00019243,2]
[375176841,1753578640450,-460.0,0.00019243,2]
[375176842,1753578640460,-460.0,0.00019243,2]
[375176843,1753578640470,-460.0,0.00019243,2]
[375176844,1753578640480,-460.0,0.00019243,2]
[375176845,1753578640490,-460.0,0.00019243,2]
[375176846,1753578640502,-460.0,0.00019243,2]
[375176847,1753578640511,-460.0,0.00019243,2]
[375176848,1753578640521,-460.0,0.00019243,2]
[375176849,1753578640531,-460.0,0.00019243,2]
[375176850,1753578640540,-460.0,0.00019243,2]
[375176851,1753578640551,-460.0,0.00019243,2]
[375176852,1753578640562,-460.0,0.00019243,2]
[375176853,1753578640571,-460.0,0.00019243,2]
[375176854,1753578640581,-460.0,0.00019243,2]
[375176855,1753578640591,-460.0,0.00019243,2]
[375176856,1753578640600,-460.0,0.00019243,2]
[375176857,1753578640610,-460.0,0.00019243,2]
[375176858,1753578640620,-460.0,0.00019243,2]
[375176859,1753578640640,-460.0,0.00019243,2]
[375176860,1753578640650,-462.20882336,0.00019243,2]
[375176861,1753578640660,-460.0,0.00019243,2]
[375176862,1753578640671,-545.97845449,0.00019243,2]
[375176863,1753578640680,-460.0,0.00019243,2]
[375176864,1753578640690,-460.0,0.00019243,2]
[375176865,1753578640700,-460.0,0.00019243,2]
[375176866,1753578640710,-460.0,0.00019243,2]
[375176867,1753578640719,-338.96929357,0.00019243,2]
[375176868,1753578640728,-460.0,0.00019243,2]
[375176869,1753578640738,-460.0,0.00019243,2]
[375176870,1753578640751,-460.0,0.00019243,2]
[375176871,1753578640761,-460.0,0.00019243,2]
[375176872,1753578640770,-460.0,0.00019243,2]
[375176873,1753578640779,-460.0,0.00019243,2]
[375176874,1753578640789,-460.0,0.00019243,2]
[375176875,1753578640799,-460.0,0.00019243,2]
[375176876,1753578640808,-460.0,0.00019243,2]
[375176877,1753578640818,-460.0,0.00019243,2]
[375176878,1753578640828,-460.0,0.00019243,2]
[375176879,1753578640837,-460.0,0.00019243,2]
[375176880,1753578640847,-460.0,0.00019243,2]
[375176881,1753578640857,-460.0,0.00019243,2]
[375176882,1753578640866,-461.09431257,0.00019243,2]
[375176883,1753578640875,-500.0,0.00019243,2]
[375176884,1753578640885,-460.0,0.00019243,2]
[375176885,1753578640894,-460.0,0.00019243,2]
[375176886,1753578640904,-460.0,0.00019243,2]
[375176887,1753578640913,-460.0,0.00019243,2]
[375176888,1753578640927,-460.0,0.00019243,2]
[375176889,1753578640936,-460.0,0.00019243,2]
[375176890,1753578640945,-460.0,0.00019243,2]
[375176891,1753578640955,-460.0,0.00019243,2]
[375176892,1753578640964,-460.0,0.00019243,2]
[375176893,1753578640973,-460.0,0.00019243,2]
[375176894,1753578640982,-460.0,0.00019243,2]
[375176895,1753578640991,-449.35364959,0.00019243,2]
[375176896,1753578641001,-460.0,0.00019243,2]
[375176897,1753578641011,-460.0,0.00019243,2]
[375176898,1753578641020,-460.0,0.00019243,2]
[375176899,1753578641029,-365.93812593,0.00019243,2]
[375176900,1753578641039,-460.0,0.00019243,2]
[375176901,1753578641048,-460.0,0.00019243,2]
[375176902,1753578641057,-461.46444651,0.00019243,2]
[375176903,1753578641066,-460.0,0.00019243,2]
[375176904,1753578641076,-460.0,0.00019243,2]
[375176905,1753578641085,-460.0,0.00019243,2]
[375176906,1753578641095,-460.0,0.00019243,2]
[375176907,1753578641106,-460.0,0.00019243,2]
[375176908,1753578641115,-460.0,0.00019243,2]
[375176909,1753578641125,-460.0,0.00019243,2]
[375176910,1753578641210,-460.0,0.00019243,2]
[375176911,1753578641229,-460.0,0.00019243,2]
[375176912,1753578641239,-460.0,0.00019243,2]
[375176913,1753578641250,-460.0,0.00019243,2]
[375176914,1753578641260,-460.0,0.00019243,2]
[375176915,1753578641270,-460.0,0.00019243,2]
[375176916,1753578641279,-460.0,0.00019243,2]
[375176917,1753578641289,-460.0,0.00019243,2]
[375176918,1753578641299,-460.0,0.00019243,2]
[375176919,1753578641309,-540.67,0.00019243,2]
[375176920,1753578641318,-460.0,0.00019243,2]
[375176921,1753578641328,-460.0,0.00019243,2]
[375176922,1753578641338,-460.0,0.00019243,2]
[375176923,1753578641347,-460.0,0.00019243,2]
[375176924,1753578641357,-460.0,0.00019243,2]
[375176925,1753578641366,-460.0,0.00019243,2]
[375176926,1753578641376,-460.0,0.00019243,2]
[375176927,1753578641386,-460.0,0.00019243,2]
[375176928,1753578641395,-460.0,0.00019243,2]
[375176929,1753578641405,-460.0,0.00019243,2]
[375176930,1753578641414,-507.33557703,0.00019243,2]
[375176931,1753578641423,-460.0,0.00019243,2]
[375176932,1753578641433,-460.0,0.00019243,2]
[375176933,1753578641442,-460.0,0.00019243,2]
[375176934,1753578641451,-466.16448677,0.00019243,2]
[375176935,1753578641461,-460.0,0.00019243,2]
[375176936,1753578641471,-460.0,0.00019243,2]
[375176937,1753578641481,-3688.06,0.00019243,2]
[375176938,1753578641491,-460.0,0.00019243,2]
[375176939,1753578641500,-460.0,0.00019243,2]
[375176940,1753578641510,-460.0,0.00019243,2]
[375176941,1753578641519,-460.0,0.00019243,2]
[375176942,1753578641528,-460.0,0.00019243,2]
[375176943,1753578641538,-460.0,0.00019243,2]
[375176944,1753578641548,-460.0,0.00019243,2]
[375176945,1753578641557,-460.0,0.00019243,2]
[375176946,1753578641567,-460.0,0.00019243,2]
[375176947,1753578641577,-460.0,0.00019243,2]
[375176948,1753578641587,-460.0,0.00019243,2]
[375176949,1753578641596,-460.0,0.00019243,2]
[375176950,1753578641606,-460.0,0.00019243,2]
[375176951,1753578641615,-460.0,0.00019243,2]
[375176952,1753578641630,-460.0,0.00019243,2]
[375176953,1753578641639,-460.0,0.00019243,2]
[375176954,1753578641649,-460.0,0.00019243,2]
[375176955,1753578641659,-460.0,0.00019243,2]
[375176956,1753578641669,-460.0,0.00019243,2]
[375176957,1753578641679,-460.0,0.00019243,2]
[375176958,1753578641689,-460.0,0.00019243,2]
[375176959,1753578641698,-460.0,0.00019243,2]
[375176960,1753578641708,-460.0,0.00019243,2]
[375176961,1753578641718,-460.0,0.00019243,2]
[375176962,1753578641727,-460.0,0.00019243,2]
[375176963,1753578641737,-460.0,0.00019243,2]
[375176964,1753578641747,-460.0,0.00019243,2]
[375176965,1753578641757,-460.0,0.00019243,2]
[375176966,1753578641767,-460.0,0.00019243,2]
[375176967,1753578641777,-460.0,0.00019243,2]
[375176968,1753578641786,-460.0,0.00019243,2]
[375176969,1753578641796,-460.0,0.00019243,2]
[375176970,1753578641805,-460.0,0.00019243,2]
[375176971,1753578641815,-460.0,0.00019243,2]
[375176972,1753578641825,-460.0,0.00019243,2]
[375176973,1753578641835,-460.0,0.00019243,2]
[375176974,1753578641845,-460.0,0.00019243,2]
[375176975,1753578641854,-460.0,0.00019243,2]
[375176976,1753578641863,-460.0,0.00019243,2]
[375176977,1753578641873,-445.99848056,0.00019243,2]
[375176978,1753578641883,-460.0,0.00019243,2]
[375176979,1753578641892,-460.0,0.00019243,2]
[375176980,1753578641903,-276.30727713,0.00019243,2]
[375176981,1753578641913,-460.0,0.00019243,2]
[375176982,1753578641923,-460.0,0.00019243,2]
[375176983,1753578641933,-460.0,0.00019243,2]
[375176984,1753578641943,-460.0,0.00019243,2]
[375176985,1753578641953,-460.0,0.00019243,2]
[375176986,1753578641962,-1423.65,0.00019243,2]
[375176987,1753578641971,-460.0,0.00019243,2]
[375176988,1753578641981,-460.0,0.00019243,2]
[375176989,1753578641990,-460.0,0.00019243,2]
[375176990,1753578642000,-502.46886879,0.00019243,2]
[375176991,1753578642009,-460.0,0.00019243,2]
[375176992,1753578642019,-460.0,0.00019243,2]
[375176993,1753578642028,-460.0,0.00019243,2]
[375176994,1753578642038,-460.0,0.00019243,2]
[375176995,1753578642047,-460.0,0.00019243,2]
[375176996,1753578642057,-460.0,0.00019243,2]
[375176997,1753578642067,-460.0,0.00019243,2]
[375176998,1753578642077,-599.39692175,0.00019243,2]
[375176999,1753578642086,-460.0,0.00019243,2]
[375177000,1753578642096,-460.0,0.00019243,2]
[375177001,1753578642105,-460.0,0.00019243,2]
[375177002,1753578642115,-460.0,0.00019243,2]
[375177003,1753578642125,-460.0,0.00019243,2]
[375177004,1753578642134,-460.0,0.00019243,2]
[375177005,1753578642144,-460.0,0.00019243,2]
[375177006,1753578642153,-460.0,0.00019243,2]
[375177007,1753578642163,-460.0,0.00019243,2]
[375177008,1753578642172,-460.0,0.00019243,2]
[375177009,1753578642182,-460.0,0.00019243,2]
[375177010,1753578642191,-361.04747461,0.00019243,2]
[375177011,1753578642201,-460.0,0.00019243,2]
[375177012,1753578642211,-460.0,0.00019243,2]
[375177013,1753578642221,-327.35339739,0.00019243,2]
[375177014,1753578642231,-460.0,0.00019243,2]
[375177015,1753578642241,-460.0,0.00019243,2]
[375177016,1753578642251,-460.0,0.00019243,2]
[375177017,1753578642261,-460.0,0.00019243,2]
[375177018,1753578642270,-460.0,0.00019243,2]
[375177019,1753578642280,-460.0,0.00019243,2]
[375177020,1753578642289,-500.0,0.00019244,2]
[375177021,1753578642299,-500.0,0.00019244,2]
[375177022,1753578642309,-235.09118478,0.00019244,2]
[375177023,1753578642319,-160.0,0.00019244,2]
[375177024,1753578642328,-460.0,0.00019245,2]
[375177025,1753578642337,-460.0,0.00019245,2]
[375177026,1753578642347,-460.0,0.00019245,2]
[375177027,1753578642356,-460.0,0.00019245,2]
[375177028,1753578642366,-460.0,0.00019245,2]
[375177029,1753578642375,-460.0,0.00019245,2]
[375177030,1753578642384,-460.0,0.00019245,2]
[375177031,1753578642395,-460.0,0.00019245,2]
[375177032,1753578642404,-460.0,0.00019245,2]
[375177033,1753578642413,-460.0,0.00019245,2]
[375177034,1753578642423,-460.0,0.00019245,2]
[375177035,1753578642433,-462.01426599,0.00019245,2]
[375177036,1753578642442,-460.0,0.00019245,2]
[375177037,1753578642452,-460.0,0.00019245,2]
[375177038,1753578642462,-460.0,0.00019245,2]
[375177039,1753578642472,-472.87186896,0.00019245,2]
[375177040,1753578642483,-460.0,0.00019245,2]
[375177041,1753578642494,-280.54419779,0.00019245,2]
[375177042,1753578642504,-460.0,0.00019245,2]
[375177043,1753578642514,-460.0,0.00019245,2]
[375177044,1753578642523,-460.0,0.00019245,2]
[375177045,1753578642532,-460.0,0.00019245,2]
[375177046,1753578642542,-460.0,0.00019245,2]
[375177047,1753578642553,-460.0,0.00019245,2]
[375177048,1753578642562,-530.56027102,0.00019245,2]
[375177049,1753578642573,-460.0,0.00019245,2]
[375177050,1753578642583,-460.0,0.00019245,2]
[375177051,1753578642593,-460.0,0.00019245,2]